[Event "Titled Tuesday Blitz January 25 2022"]
[White "Sarana, Alexey"]
[Black "Sadykov, Ramil"]
[WhiteFideId "24133795"]
[BlackFideId "24113590"]
[WhiteElo "2665"]
[BlackElo "2300"]
[Result "1-0"]
[Round "01"]
[TimeControl "180+1"]
[Date "2022.01.26"]
[WhiteClock "0:01:04"]
[BlackClock "0:00:02"]

1. d4 {[%clk 0:02:59]}  Nf6 {[%clk 0:02:44]} 2. c4 {[%clk 0:02:59]}  g6 {[%clk 0:02:43]} 3. Nc3 {[%clk 0:03:00]}  d5 {[%clk 0:02:44]} 4. cxd5 {[%clk 0:02:59]}  Nxd5 {[%clk 0:02:45]} 5. e4 {[%clk 0:03:00]}  Nxc3 {[%clk 0:02:44]} 6. bxc3 {[%clk 0:03:01]}  Bg7 {[%clk 0:02:45]} 7. Nf3 {[%clk 0:03:00]}  c5 {[%clk 0:02:44]} 8. Bb5+ {[%clk 0:03:00]}  Bd7 {[%clk 0:02:40]} 9. Be2 {[%clk 0:02:59]}  O-O {[%clk 0:02:36]} 10. Be3 {[%clk 0:02:58]}  cxd4 {[%clk 0:02:33]} 11. cxd4 {[%clk 0:02:59]}  Qa5+ {[%clk 0:02:33]} 12. Bd2 {[%clk 0:02:54]}  Qa4 {[%clk 0:02:29]} 13. Qxa4 {[%clk 0:02:45]}  Bxa4 {[%clk 0:02:29]} 14. Rc1 {[%clk 0:02:45]}  Nd7 {[%clk 0:01:54]} 15. Bb4 {[%clk 0:02:29]}  Rfc8 {[%clk 0:01:48]} 16. O-O {[%clk 0:02:28]}  e6 {[%clk 0:01:44]} 17. Bd6 {[%clk 0:02:19]}  Bf8 {[%clk 0:01:42]} 18. Bxf8 {[%clk 0:01:52]}  Kxf8 {[%clk 0:01:43]} 19. Bd3 {[%clk 0:01:52]}  Ke7 {[%clk 0:01:41]} 20. Rfe1 {[%clk 0:01:50]}  Nb6 {[%clk 0:01:36]} 21. Kf1 {[%clk 0:01:50]}  Rxc1 {[%clk 0:01:24]} 22. Rxc1 {[%clk 0:01:49]}  Rc8 {[%clk 0:01:25]} 23. Rxc8 {[%clk 0:01:48]}  Nxc8 {[%clk 0:01:25]} 24. Ke2 {[%clk 0:01:48]}  Nd6 {[%clk 0:01:24]} 25. Ke3 {[%clk 0:01:42]}  Bb5 {[%clk 0:01:16]} 26. Bc2 {[%clk 0:01:42]}  Nc4+ {[%clk 0:01:14]} 27. Kf4 {[%clk 0:01:42]}  f6 {[%clk 0:01:13]} 28. h4 {[%clk 0:01:41]}  Na3 {[%clk 0:01:03]} 29. Bb3 {[%clk 0:01:37]}  Bc4 {[%clk 0:00:59]} 30. e5 {[%clk 0:01:34]}  Bxb3 {[%clk 0:00:56]} 31. axb3 {[%clk 0:01:33]}  Nb5 {[%clk 0:00:54]} 32. g4 {[%clk 0:01:25]}  Nc3 {[%clk 0:00:48]} 33. exf6+ {[%clk 0:01:20]}  Kxf6 {[%clk 0:00:49]} 34. Ne5 {[%clk 0:01:21]}  Nd5+ {[%clk 0:00:42]} 35. Ke4 {[%clk 0:01:20]}  h6 {[%clk 0:00:36]} 36. f4 {[%clk 0:01:19]}  Nc3+ {[%clk 0:00:34]} 37. Kd3 {[%clk 0:01:20]}  Nd5 {[%clk 0:00:35]} 38. g5+ {[%clk 0:01:18]}  Kg7 {[%clk 0:00:25]} 39. Ke4 {[%clk 0:01:15]}  Nc3+ {[%clk 0:00:24]} 40. Kf3 {[%clk 0:01:15]}  Nd5 {[%clk 0:00:24]} 41. Nd7 {[%clk 0:01:14]}  b6 {[%clk 0:00:20]} 42. Ke4 {[%clk 0:01:14]}  hxg5 {[%clk 0:00:13]} 43. fxg5 {[%clk 0:01:14]}  Kf7 {[%clk 0:00:12]} 44. Ne5+ {[%clk 0:01:14]}  Kg7 {[%clk 0:00:11]} 45. Nc6 {[%clk 0:01:14]}  a5 {[%clk 0:00:11]} 46. Ke5 {[%clk 0:01:14]}  Ne3 {[%clk 0:00:08]} 47. Kxe6 {[%clk 0:01:13]}  Ng2 {[%clk 0:00:08]} 48. d5 {[%clk 0:01:12]}  Nf4+ {[%clk 0:00:06]} 49. Ke5 {[%clk 0:01:12]}  Nd3+ {[%clk 0:00:06]} 50. Kd6 {[%clk 0:01:05]}  Nc5 {[%clk 0:00:06]} 51. Kc7 {[%clk 0:01:05]}  Kf7 {[%clk 0:00:02]} 52. d6 {[%clk 0:01:04]} 1-0


[Site "https://www.chess.com"]

[Event "Titled Tuesday Blitz January 25 2022"]
[White "Shevchenko, Kirill"]
[Black "Atanasov, Anthony"]
[WhiteFideId "14129574"]
[BlackFideId "2623897"]
[WhiteElo "2624"]
[BlackElo "1928"]
[Result "1-0"]
[Round "01"]
[TimeControl "180+1"]
[Date "2022.01.26"]
[WhiteClock "0:01:11"]
[BlackClock "0:00:14"]

1. d4 {[%clk 0:02:59]}  Nf6 {[%clk 0:02:58]} 2. Bg5 {[%clk 0:02:59]}  Ne4 {[%clk 0:02:56]} 3. Bf4 {[%clk 0:02:56]}  d5 {[%clk 0:02:55]} 4. e3 {[%clk 0:02:55]}  e6 {[%clk 0:02:55]} 5. Nd2 {[%clk 0:02:54]}  Nf6 {[%clk 0:02:52]} 6. Bd3 {[%clk 0:02:53]}  Bd6 {[%clk 0:02:52]} 7. Ngf3 {[%clk 0:02:52]}  b6 {[%clk 0:02:46]} 8. c3 {[%clk 0:02:52]}  O-O {[%clk 0:02:44]} 9. Ne5 {[%clk 0:02:49]}  Ba6 {[%clk 0:02:43]} 10. Bxa6 {[%clk 0:02:47]}  Nxa6 {[%clk 0:02:44]} 11. h4 {[%clk 0:02:31]}  Nd7 {[%clk 0:02:27]} 12. Nc6 {[%clk 0:02:15]}  Qf6 {[%clk 0:02:18]} 13. Bg5 {[%clk 0:02:05]}  Qg6 {[%clk 0:02:09]} 14. Qa4 {[%clk 0:01:38]}  Nab8 {[%clk 0:01:39]} 15. Be7 {[%clk 0:01:37]}  Re8 {[%clk 0:01:10]} 16. Bxd6 {[%clk 0:01:37]}  cxd6 {[%clk 0:01:11]} 17. Nxb8 {[%clk 0:01:37]}  Qxg2 {[%clk 0:00:54]} 18. O-O-O {[%clk 0:01:34]}  b5 {[%clk 0:00:50]} 19. Qxb5 {[%clk 0:01:32]}  Raxb8 {[%clk 0:00:51]} 20. Qxd7 {[%clk 0:01:32]}  Qxf2 {[%clk 0:00:48]} 21. Rhf1 {[%clk 0:01:30]}  Qxe3 {[%clk 0:00:47]} 22. Qxf7+ {[%clk 0:01:30]}  Kh8 {[%clk 0:00:47]} 23. Rde1 {[%clk 0:01:30]}  Qh6 {[%clk 0:00:45]} 24. Qd7 {[%clk 0:01:25]}  Rbd8 {[%clk 0:00:31]} 25. Rxe6 {[%clk 0:01:15]}  Qxe6 {[%clk 0:00:21]} 26. Rf8+ {[%clk 0:01:15]}  Qg8 {[%clk 0:00:20]} 27. Rxg8+ {[%clk 0:01:15]}  Kxg8 {[%clk 0:00:21]} 28. Qxa7 {[%clk 0:01:15]}  Re1+ {[%clk 0:00:17]} 29. Kc2 {[%clk 0:01:15]}  Rf8 {[%clk 0:00:18]} 30. Qb7 {[%clk 0:01:11]}  Re2 {[%clk 0:00:14]} 31. Qxd5+ {[%clk 0:01:11]}  Kh8 {[%clk 0:00:14]} 32. Kd3 {[%clk 0:01:11]} 1-0


[Site "https://www.chess.com"]

[Event "Titled Tuesday Blitz January 25 2022"]
[White "Shuvalov, Evgenij"]
[Black "Jones, Gawain C B"]
[WhiteFideId "4187237"]
[BlackFideId "409561"]
[WhiteElo "2119"]
[BlackElo "2657"]
[Result "0-1"]
[Round "01"]
[TimeControl "180+1"]
[Date "2022.01.26"]
[WhiteClock "0:00:17"]
[BlackClock "0:02:34"]

1. Nf3 {[%clk 0:02:53]}  Nf6 {[%clk 0:02:57]} 2. c4 {[%clk 0:02:53]}  g6 {[%clk 0:02:57]} 3. d4 {[%clk 0:02:52]}  Bg7 {[%clk 0:02:58]} 4. Nc3 {[%clk 0:02:52]}  O-O {[%clk 0:02:57]} 5. e4 {[%clk 0:02:52]}  d6 {[%clk 0:02:58]} 6. Be2 {[%clk 0:02:51]}  Nbd7 {[%clk 0:02:58]} 7. O-O {[%clk 0:02:51]}  e5 {[%clk 0:02:58]} 8. Be3 {[%clk 0:02:51]}  Qe7 {[%clk 0:02:59]} 9. Qc2 {[%clk 0:02:47]}  c6 {[%clk 0:02:59]} 10. Rfe1 {[%clk 0:02:46]}  h6 {[%clk 0:02:58]} 11. Rad1 {[%clk 0:02:45]}  Ng4 {[%clk 0:02:57]} 12. Bc1 {[%clk 0:02:15]}  exd4 {[%clk 0:02:57]} 13. Nxd4 {[%clk 0:02:11]}  Nxf2 {[%clk 0:02:56]} 14. Kxf2 {[%clk 0:01:45]}  Qh4+ {[%clk 0:02:55]} 15. Ke3 {[%clk 0:00:48]}  Bxd4+ {[%clk 0:02:52]} 16. Kxd4 {[%clk 0:00:29]}  Qf2+ {[%clk 0:02:52]} 17. Be3 {[%clk 0:00:24]}  c5+ {[%clk 0:02:52]} 18. Kd3 {[%clk 0:00:23]}  Ne5+ {[%clk 0:02:51]} 19. Kd2 {[%clk 0:00:23]}  Nxc4+ {[%clk 0:02:51]} 20. Kc1 {[%clk 0:00:23]}  Nxe3 {[%clk 0:02:51]} 21. Qd2 {[%clk 0:00:18]}  Nxd1 {[%clk 0:02:50]} 22. Bxd1 {[%clk 0:00:19]}  Qxd2+ {[%clk 0:02:50]} 23. Kxd2 {[%clk 0:00:20]}  Be6 {[%clk 0:02:48]} 24. Nd5 {[%clk 0:00:19]}  Bxd5 {[%clk 0:02:48]} 25. exd5 {[%clk 0:00:20]}  Rfe8 {[%clk 0:02:46]} 26. Rf1 {[%clk 0:00:20]}  Re4 {[%clk 0:02:43]} 27. Bf3 {[%clk 0:00:20]}  Rd4+ {[%clk 0:02:43]} 28. Kc3 {[%clk 0:00:20]}  Re8 {[%clk 0:02:43]} 29. Rf2 {[%clk 0:00:20]}  f5 {[%clk 0:02:40]} 30. h3 {[%clk 0:00:19]}  Kg7 {[%clk 0:02:39]} 31. Kc2 {[%clk 0:00:19]}  Kf6 {[%clk 0:02:37]} 32. Kc3 {[%clk 0:00:18]}  b5 {[%clk 0:02:36]} 33. a3 {[%clk 0:00:18]}  a5 {[%clk 0:02:36]} 34. b3 {[%clk 0:00:17]}  Re3+ {[%clk 0:02:35]} 35. Kc2 {[%clk 0:00:17]}  Rdd3 {[%clk 0:02:34]} 0-1


[Site "https://www.chess.com"]

[Event "Titled Tuesday Blitz January 25 2022"]
[White "Sliwicki, Damian"]
[Black "Zarubitski, Viachaslau"]
[WhiteFideId "1127128"]
[BlackFideId "13509373"]
[WhiteElo "2084"]
[BlackElo "2325"]
[Result "0-1"]
[Round "01"]
[TimeControl "180+1"]
[Date "2022.01.26"]
[WhiteClock "0:00:02"]
[BlackClock "0:01:34"]

1. e4 {[%clk 0:02:58]}  c5 {[%clk 0:02:58]} 2. Nf3 {[%clk 0:02:58]}  e6 {[%clk 0:02:59]} 3. d4 {[%clk 0:02:59]}  cxd4 {[%clk 0:03:00]} 4. Nxd4 {[%clk 0:02:59]}  Nc6 {[%clk 0:03:00]} 5. Nc3 {[%clk 0:02:58]}  Qc7 {[%clk 0:03:00]} 6. g3 {[%clk 0:02:52]}  a6 {[%clk 0:02:59]} 7. Bg2 {[%clk 0:02:52]}  Nf6 {[%clk 0:03:00]} 8. O-O {[%clk 0:02:53]}  Nxd4 {[%clk 0:02:59]} 9. Qxd4 {[%clk 0:02:52]}  Bc5 {[%clk 0:03:00]} 10. Bf4 {[%clk 0:02:50]}  d6 {[%clk 0:03:00]} 11. Qd3 {[%clk 0:02:46]}  h6 {[%clk 0:02:59]} 12. Rad1 {[%clk 0:02:47]}  e5 {[%clk 0:02:59]} 13. Be3 {[%clk 0:02:45]}  Bxe3 {[%clk 0:02:55]} 14. fxe3 {[%clk 0:02:46]}  Be6 {[%clk 0:02:48]} 15. Qxd6 {[%clk 0:02:43]}  Qxd6 {[%clk 0:02:48]} 16. Rxd6 {[%clk 0:02:44]}  Rc8 {[%clk 0:02:48]} 17. Rb6 {[%clk 0:02:23]}  Rc7 {[%clk 0:02:44]} 18. Nd5 {[%clk 0:02:23]}  Rxc2 {[%clk 0:02:13]} 19. Nxf6+ {[%clk 0:02:13]}  gxf6 {[%clk 0:02:14]} 20. Rxb7 {[%clk 0:02:13]}  O-O {[%clk 0:02:07]} 21. Rf2 {[%clk 0:01:18]}  Rc1+ {[%clk 0:02:05]} 22. Rf1 {[%clk 0:01:19]}  Rfc8 {[%clk 0:02:01]} 23. h4 {[%clk 0:00:58]}  Bxa2 {[%clk 0:01:56]} 24. b3 {[%clk 0:00:54]}  R8c3 {[%clk 0:01:50]} 25. Rxc1 {[%clk 0:00:36]}  Rxc1+ {[%clk 0:01:49]} 26. Kh2 {[%clk 0:00:36]}  Rc3 {[%clk 0:01:45]} 27. Rb6 {[%clk 0:00:32]}  Kg7 {[%clk 0:01:41]} 28. Rxa6 {[%clk 0:00:30]}  Bxb3 {[%clk 0:01:40]} 29. Ra3 {[%clk 0:00:30]}  Rxe3 {[%clk 0:01:41]} 30. Bf1 {[%clk 0:00:27]}  Rc3 {[%clk 0:01:36]} 31. Kg1 {[%clk 0:00:26]}  Rxg3+ {[%clk 0:01:36]} 32. Kf2 {[%clk 0:00:27]}  Rc3 {[%clk 0:01:36]} 33. Ke1 {[%clk 0:00:23]}  Rc1+ {[%clk 0:01:34]} 34. Kf2 {[%clk 0:00:19]}  Be6 {[%clk 0:01:33]} 35. Rg3+ {[%clk 0:00:19]}  Kf8 {[%clk 0:01:33]} 36. Rf3 {[%clk 0:00:20]}  Ke7 {[%clk 0:01:34]} 37. Ra3 {[%clk 0:00:21]}  Rc2+ {[%clk 0:01:34]} 38. Kg3 {[%clk 0:00:19]}  Ra2 {[%clk 0:01:35]} 39. Rc3 {[%clk 0:00:19]}  Kf8 {[%clk 0:01:35]} 40. h5 {[%clk 0:00:18]}  Kg7 {[%clk 0:01:34]} 41. Kh4 {[%clk 0:00:18]}  Ra4 {[%clk 0:01:34]} 42. Bg2 {[%clk 0:00:18]}  f5 {[%clk 0:01:35]} 43. Rg3+ {[%clk 0:00:14]}  Kf8 {[%clk 0:01:34]} 44. Rc3 {[%clk 0:00:07]}  fxe4 {[%clk 0:01:34]} 45. Bh3 {[%clk 0:00:02]}  e3+ {[%clk 0:01:34]} 46. Kg3 {[%clk 0:00:02]}  e2 {[%clk 0:01:34]} 47. Re3 {[%clk 0:00:03]}  Ra3 {[%clk 0:01:34]} 48. Kf2 {[%clk 0:00:01]}  Rxe3 {[%clk 0:01:33]} 49. Bxe6 {[%clk 0:00:02]}  e1=Q+ {[%clk 0:01:34]} 50. Kg2 {[%clk 0:00:02]}  Rg3+ {[%clk 0:01:34]} 0-1


[Site "https://www.chess.com"]

[Event "Titled Tuesday Blitz January 25 2022"]
[White "Srihari L R"]
[Black "Baches Garcia, Guillermo"]
[WhiteFideId "46617116"]
[BlackFideId "2209764"]
[WhiteElo "2121"]
[BlackElo "2405"]
[Result "1-0"]
[Round "01"]
[TimeControl "180+1"]
[Date "2022.01.26"]
[WhiteClock "0:01:02"]
[BlackClock "0:00:01"]

1. c4 {[%clk 0:02:59]}  Nf6 {[%clk 0:02:58]} 2. Nc3 {[%clk 0:02:56]}  e6 {[%clk 0:02:58]} 3. e4 {[%clk 0:02:55]}  c5 {[%clk 0:02:57]} 4. g3 {[%clk 0:02:52]}  d5 {[%clk 0:02:52]} 5. cxd5 {[%clk 0:02:45]}  exd5 {[%clk 0:02:49]} 6. exd5 {[%clk 0:02:38]}  Nxd5 {[%clk 0:02:45]} 7. Bg2 {[%clk 0:02:37]}  Be6 {[%clk 0:02:32]} 8. Nge2 {[%clk 0:02:33]}  Be7 {[%clk 0:02:29]} 9. O-O {[%clk 0:02:23]}  O-O {[%clk 0:02:28]} 10. d4 {[%clk 0:02:20]}  c4 {[%clk 0:02:11]} 11. Nf4 {[%clk 0:02:17]}  Nxf4 {[%clk 0:01:58]} 12. Bxf4 {[%clk 0:02:16]}  Qd7 {[%clk 0:01:58]} 13. Qf3 {[%clk 0:02:10]}  Bh3 {[%clk 0:01:44]} 14. Bxh3 {[%clk 0:01:51]}  Qxh3 {[%clk 0:01:43]} 15. Qxb7 {[%clk 0:01:46]}  Nd7 {[%clk 0:01:40]} 16. Rfe1 {[%clk 0:01:45]}  Bf6 {[%clk 0:01:34]} 17. Rad1 {[%clk 0:01:39]}  Rfe8 {[%clk 0:01:10]} 18. Ne4 {[%clk 0:01:30]}  h5 {[%clk 0:00:55]} 19. Nd6 {[%clk 0:01:24]}  Rxe1+ {[%clk 0:00:47]} 20. Rxe1 {[%clk 0:01:24]}  Rb8 {[%clk 0:00:43]} 21. Qd5 {[%clk 0:01:16]}  Rxb2 {[%clk 0:00:37]} 22. Qxf7+ {[%clk 0:01:13]}  Kh7 {[%clk 0:00:34]} 23. Nxc4 {[%clk 0:01:12]}  Rxa2 {[%clk 0:00:12]} 24. Ne5 {[%clk 0:01:08]}  Bxe5 {[%clk 0:00:01]} 25. dxe5 {[%clk 0:01:03]}  Rd2 {[%clk 0:00:01]} 26. Bxd2 {[%clk 0:01:02]} 1-0


[Site "https://www.chess.com"]

[Event "Titled Tuesday Blitz January 25 2022"]
[White "Steinberg, Nitzan"]
[Black "Santos Flores, Alberto"]
[WhiteFideId "2801795"]
[BlackFideId "3601234"]
[WhiteElo "2440"]
[BlackElo "2293"]
[Result "1-0"]
[Round "01"]
[TimeControl "180+1"]
[Date "2022.01.26"]
[WhiteClock "0:00:11"]
[BlackClock "0:00:13"]

1. e4 {[%clk 0:03:00]}  c5 {[%clk 0:02:57]} 2. Nf3 {[%clk 0:03:00]}  Nc6 {[%clk 0:02:55]} 3. d4 {[%clk 0:03:00]}  cxd4 {[%clk 0:02:55]} 4. Nxd4 {[%clk 0:03:00]}  g6 {[%clk 0:02:54]} 5. Nc3 {[%clk 0:02:55]}  Bg7 {[%clk 0:02:53]} 6. Nb3 {[%clk 0:02:56]}  Nf6 {[%clk 0:02:47]} 7. Be2 {[%clk 0:02:53]}  O-O {[%clk 0:02:46]} 8. O-O {[%clk 0:02:54]}  d6 {[%clk 0:02:44]} 9. Bg5 {[%clk 0:02:51]}  b6 {[%clk 0:02:35]} 10. Qd2 {[%clk 0:02:47]}  Bb7 {[%clk 0:02:35]} 11. Rad1 {[%clk 0:02:46]}  Nd7 {[%clk 0:02:33]} 12. Rfe1 {[%clk 0:02:43]}  Rc8 {[%clk 0:02:25]} 13. Bh6 {[%clk 0:02:33]}  Nc5 {[%clk 0:02:20]} 14. Bxg7 {[%clk 0:02:28]}  Kxg7 {[%clk 0:02:21]} 15. f4 {[%clk 0:02:19]}  a5 {[%clk 0:02:08]} 16. Nd4 {[%clk 0:02:12]}  Nxd4 {[%clk 0:02:05]} 17. Qxd4+ {[%clk 0:02:12]}  Kg8 {[%clk 0:02:01]} 18. Bf1 {[%clk 0:01:55]}  Qc7 {[%clk 0:01:59]} 19. Qf2 {[%clk 0:01:41]}  Bc6 {[%clk 0:01:53]} 20. Re3 {[%clk 0:01:38]}  Qb7 {[%clk 0:01:49]} 21. Rd4 {[%clk 0:01:20]}  b5 {[%clk 0:01:46]} 22. Qh4 {[%clk 0:01:18]}  Kg7 {[%clk 0:01:10]} 23. Rh3 {[%clk 0:01:06]}  h5 {[%clk 0:01:09]} 24. f5 {[%clk 0:01:00]}  Qa7 {[%clk 0:01:01]} 25. Kh1 {[%clk 0:00:51]}  b4 {[%clk 0:00:23]} 26. Nd5 {[%clk 0:00:51]}  Bxd5 {[%clk 0:00:21]} 27. exd5 {[%clk 0:00:51]}  Nd7 {[%clk 0:00:21]} 28. Bd3 {[%clk 0:00:42]}  Ne5 {[%clk 0:00:20]} 29. Rg3 {[%clk 0:00:34]}  Rc5 {[%clk 0:00:16]} 30. fxg6 {[%clk 0:00:23]}  fxg6 {[%clk 0:00:15]} 31. Qxh5 {[%clk 0:00:21]}  Rf6 {[%clk 0:00:14]} 32. Rh4 {[%clk 0:00:19]}  Kf7 {[%clk 0:00:13]} 33. Qh8 {[%clk 0:00:11]} 1-0


[Site "https://www.chess.com"]

[Event "Titled Tuesday Blitz January 25 2022"]
[White "Svane, Frederik"]
[Black "Ben Artzi, Ido"]
[WhiteFideId "12923044"]
[BlackFideId "2810913"]
[WhiteElo "2459"]
[BlackElo "2244"]
[Result "1-0"]
[Round "01"]
[TimeControl "180+1"]
[Date "2022.01.26"]
[WhiteClock "0:00:37"]
[BlackClock "0:00:02"]

1. e4 {[%clk 0:02:56]}  e5 {[%clk 0:02:58]} 2. Nf3 {[%clk 0:02:56]}  Nc6 {[%clk 0:02:58]} 3. Bb5 {[%clk 0:02:57]}  a6 {[%clk 0:02:59]} 4. Ba4 {[%clk 0:02:57]}  Nf6 {[%clk 0:02:58]} 5. O-O {[%clk 0:02:58]}  Be7 {[%clk 0:02:59]} 6. d3 {[%clk 0:02:58]}  b5 {[%clk 0:02:56]} 7. Bb3 {[%clk 0:02:58]}  d6 {[%clk 0:02:56]} 8. a3 {[%clk 0:02:58]}  O-O {[%clk 0:02:55]} 9. Nc3 {[%clk 0:02:59]}  Na5 {[%clk 0:02:49]} 10. Ba2 {[%clk 0:02:59]}  c5 {[%clk 0:02:43]} 11. b4 {[%clk 0:02:58]}  Nc6 {[%clk 0:02:42]} 12. Nd5 {[%clk 0:02:59]}  Be6 {[%clk 0:02:41]} 13. Nxf6+ {[%clk 0:02:58]}  Bxf6 {[%clk 0:02:41]} 14. Bxe6 {[%clk 0:02:59]}  fxe6 {[%clk 0:02:41]} 15. bxc5 {[%clk 0:03:00]}  dxc5 {[%clk 0:02:41]} 16. Be3 {[%clk 0:03:01]}  Qd6 {[%clk 0:02:37]} 17. a4 {[%clk 0:02:58]}  Nd4 {[%clk 0:02:31]} 18. Bxd4 {[%clk 0:02:56]}  exd4 {[%clk 0:02:05]} 19. Qb1 {[%clk 0:02:56]}  Qc6 {[%clk 0:01:52]} 20. Qa2 {[%clk 0:02:38]}  Rfc8 {[%clk 0:01:41]} 21. Rfb1 {[%clk 0:02:34]}  h6 {[%clk 0:01:26]} 22. h3 {[%clk 0:02:12]}  Kh7 {[%clk 0:01:25]} 23. Qb2 {[%clk 0:02:12]}  Rab8 {[%clk 0:01:03]} 24. axb5 {[%clk 0:02:12]}  axb5 {[%clk 0:01:03]} 25. Ra5 {[%clk 0:02:11]}  c4 {[%clk 0:00:42]} 26. Rxb5 {[%clk 0:02:09]}  Rxb5 {[%clk 0:00:32]} 27. Qxb5 {[%clk 0:02:09]}  Qxb5 {[%clk 0:00:31]} 28. Rxb5 {[%clk 0:02:09]}  cxd3 {[%clk 0:00:30]} 29. cxd3 {[%clk 0:02:10]}  Rc1+ {[%clk 0:00:25]} 30. Kh2 {[%clk 0:02:10]}  Rc3 {[%clk 0:00:24]} 31. e5 {[%clk 0:02:01]}  Bg5 {[%clk 0:00:20]} 32. Nxd4 {[%clk 0:02:01]}  Rxd3 {[%clk 0:00:20]} 33. Nxe6 {[%clk 0:01:59]}  Rd2 {[%clk 0:00:14]} 34. f4 {[%clk 0:01:46]}  Bh4 {[%clk 0:00:10]} 35. Nf8+ {[%clk 0:01:18]}  Kg8 {[%clk 0:00:09]} 36. Ng6 {[%clk 0:01:16]}  Bf2 {[%clk 0:00:07]} 37. Rb8+ {[%clk 0:01:07]}  Kf7 {[%clk 0:00:05]} 38. f5 {[%clk 0:01:07]}  Bc5 {[%clk 0:00:05]} 39. Rc8 {[%clk 0:00:59]}  Rc2 {[%clk 0:00:04]} 40. Rc7+ {[%clk 0:00:54]}  Kg8 {[%clk 0:00:04]} 41. Rd7 {[%clk 0:00:41]}  Re2 {[%clk 0:00:02]} 42. e6 {[%clk 0:00:36]}  Be3 {[%clk 0:00:01]} 43. Rd8+ {[%clk 0:00:36]}  Kh7 {[%clk 0:00:02]} 44. Rh8# {[%clk 0:00:37]} 1-0


[Site "https://www.chess.com"]

[Event "Titled Tuesday Blitz January 25 2022"]
[White "Urazayev, Arystanbek"]
[Black "Andrejevs, Arvids"]
[WhiteFideId "13709810"]
[BlackFideId "11602708"]
[WhiteElo "2321"]
[BlackElo "2272"]
[Result "1-0"]
[Round "01"]
[TimeControl "180+1"]
[Date "2022.01.26"]
[WhiteClock "0:00:21"]
[BlackClock "0:00:02"]

1. c4 {[%clk 0:03:00]}  e6 {[%clk 0:02:56]} 2. Nf3 {[%clk 0:03:01]}  d5 {[%clk 0:02:55]} 3. e3 {[%clk 0:03:01]}  Nf6 {[%clk 0:02:55]} 4. b3 {[%clk 0:03:01]}  c5 {[%clk 0:02:53]} 5. Bb2 {[%clk 0:03:02]}  Nc6 {[%clk 0:02:53]} 6. cxd5 {[%clk 0:03:02]}  Nxd5 {[%clk 0:02:49]} 7. Nc3 {[%clk 0:03:02]}  Nxc3 {[%clk 0:02:28]} 8. Bxc3 {[%clk 0:02:58]}  Bd7 {[%clk 0:02:24]} 9. h4 {[%clk 0:02:47]}  h6 {[%clk 0:02:18]} 10. Qb1 {[%clk 0:02:38]}  Qc7 {[%clk 0:02:10]} 11. Bd3 {[%clk 0:02:28]}  Nb4 {[%clk 0:02:05]} 12. Bxb4 {[%clk 0:02:07]}  cxb4 {[%clk 0:02:06]} 13. Qb2 {[%clk 0:02:08]}  Qd6 {[%clk 0:01:55]} 14. Ne5 {[%clk 0:01:59]}  Be7 {[%clk 0:01:41]} 15. Be4 {[%clk 0:01:52]}  O-O {[%clk 0:01:29]} 16. d4 {[%clk 0:01:43]}  Bb5 {[%clk 0:01:23]} 17. Bd3 {[%clk 0:01:44]}  Qa6 {[%clk 0:01:18]} 18. Bxb5 {[%clk 0:01:43]}  Qxb5 {[%clk 0:01:19]} 19. Qe2 {[%clk 0:01:44]}  Qd5 {[%clk 0:01:11]} 20. Nf3 {[%clk 0:01:27]}  Rac8 {[%clk 0:01:05]} 21. O-O {[%clk 0:01:27]}  Rc3 {[%clk 0:01:05]} 22. Rad1 {[%clk 0:01:19]}  Rfc8 {[%clk 0:01:04]} 23. Rd2 {[%clk 0:01:20]}  a6 {[%clk 0:00:56]} 24. g3 {[%clk 0:01:20]}  Bd6 {[%clk 0:00:43]} 25. Rfd1 {[%clk 0:01:21]}  Qf5 {[%clk 0:00:38]} 26. Kg2 {[%clk 0:01:19]}  Qe4 {[%clk 0:00:36]} 27. Kh2 {[%clk 0:01:17]}  f5 {[%clk 0:00:32]} 28. Kg1 {[%clk 0:01:15]}  f4 {[%clk 0:00:31]} 29. gxf4 {[%clk 0:01:09]}  Bxf4 {[%clk 0:00:30]} 30. Ne1 {[%clk 0:01:06]}  Bb8 {[%clk 0:00:26]} 31. Ng2 {[%clk 0:01:02]}  Rc2 {[%clk 0:00:21]} 32. Rxc2 {[%clk 0:00:54]}  Rxc2 {[%clk 0:00:21]} 33. Qh5 {[%clk 0:00:54]}  Qc6 {[%clk 0:00:17]} 34. d5 {[%clk 0:00:52]}  exd5 {[%clk 0:00:16]} 35. Ne1 {[%clk 0:00:45]}  Rc1 {[%clk 0:00:16]} 36. Rxc1 {[%clk 0:00:45]}  Qxc1 {[%clk 0:00:16]} 37. Qxd5+ {[%clk 0:00:46]}  Kh7 {[%clk 0:00:15]} 38. Qe4+ {[%clk 0:00:45]}  Kg8 {[%clk 0:00:14]} 39. Qxb4 {[%clk 0:00:43]}  Bd6 {[%clk 0:00:12]} 40. Qc4+ {[%clk 0:00:41]}  Qxc4 {[%clk 0:00:13]} 41. bxc4 {[%clk 0:00:42]}  Kf7 {[%clk 0:00:13]} 42. Kg2 {[%clk 0:00:42]}  Ke6 {[%clk 0:00:14]} 43. Nd3 {[%clk 0:00:39]}  Kd7 {[%clk 0:00:12]} 44. f4 {[%clk 0:00:38]}  Kc6 {[%clk 0:00:12]} 45. h5 {[%clk 0:00:38]}  b5 {[%clk 0:00:12]} 46. cxb5+ {[%clk 0:00:38]}  Kxb5 {[%clk 0:00:12]} 47. e4 {[%clk 0:00:38]}  Kc4 {[%clk 0:00:12]} 48. e5 {[%clk 0:00:39]}  Be7 {[%clk 0:00:09]} 49. Nf2 {[%clk 0:00:34]}  Kc3 {[%clk 0:00:09]} 50. Ne4+ {[%clk 0:00:30]}  Kb2 {[%clk 0:00:09]} 51. a4 {[%clk 0:00:27]}  Ka3 {[%clk 0:00:09]} 52. Nc3 {[%clk 0:00:28]}  Kb3 {[%clk 0:00:08]} 53. Nd5 {[%clk 0:00:28]}  Bf8 {[%clk 0:00:08]} 54. Nc7 {[%clk 0:00:24]}  a5 {[%clk 0:00:07]} 55. Ne6 {[%clk 0:00:25]}  Be7 {[%clk 0:00:05]} 56. Nxg7 {[%clk 0:00:25]}  Kxa4 {[%clk 0:00:05]} 57. f5 {[%clk 0:00:26]}  Kb3 {[%clk 0:00:05]} 58. f6 {[%clk 0:00:26]}  Bd8 {[%clk 0:00:04]} 59. Ne6 {[%clk 0:00:27]}  a4 {[%clk 0:00:03]} 60. Nxd8 {[%clk 0:00:24]}  a3 {[%clk 0:00:03]} 61. f7 {[%clk 0:00:25]}  a2 {[%clk 0:00:04]} 62. f8=Q {[%clk 0:00:26]}  a1=Q {[%clk 0:00:05]} 63. Qf3+ {[%clk 0:00:24]}  Kc4 {[%clk 0:00:05]} 64. Nf7 {[%clk 0:00:23]}  Qb2+ {[%clk 0:00:03]} 65. Kh3 {[%clk 0:00:24]}  Qb8 {[%clk 0:00:02]} 66. Nd6+ {[%clk 0:00:22]}  Kd4 {[%clk 0:00:02]} 67. Nf5+ {[%clk 0:00:21]} 1-0


[Site "https://www.chess.com"]